bitfinex-derivatives/quotes_SOLF0:USTF0_20260311
["timestamp","ask_amount","ask_price","bid_price","bid_amount"]
[1773243846729,10.29716814,85.104,85.024,14.89119027]
[1773243847033,164.371,85.161,84.947,164.783]
[1773243847034,2.57627828,85.08,85.017,14.89119027]
[1773243847227,2.57627828,85.08,85.017,29.69119027]
[1773243847428,2.57627828,85.08,85.024,10.583]
[1773243847632,2.57627828,85.08,85.025,14.89119027]
[1773243847834,2.57627828,85.07,85.022,14.8]
[1773243848025,10.578,85.063,85.022,14.8]
[1773243848226,10.578,85.063,85.011,14.88036537]
[1773243848432,2.57627828,85.07,85.011,14.88036537]
[1773243848731,2.57627828,85.04,84.98,17.45664365]
[1773243849036,13.15727828,85.04,84.98,17.45664365]
[1773243849929,21.157,85.063,84.95,17.47927823]
[1773243850132,2.57627828,85.01,84.95,17.47927823]
[1773243850632,2.57627828,85.02,84.964,10.591]
[1773243850824,2.57627828,85.02,84.964,25.49471805]
[1773243851024,2.57627828,85.02,84.965,14.90371805]
[1773243851236,13.16027828,85.02,84.965,14.90371805]
[1773243851437,2.57627828,85.01,84.953,14.90371805]
[1773243851637,10.585,85.013,84.953,14.90371805]
[1773243851935,6.45620063,85.02,84.928,14.75332399]
[1773243852632,10.588,84.989,84.929,10.595]
[1773243852834,10.588,84.989,84.926,14.8]
[1773243852835,6.45620063,85.02,84.93,14.75332399]
[1773243853535,10.587,84.994,84.93,14.75332399]
[1773243853931,10.586,85.003,84.934,10.594]
[1773243854137,10.586,85.003,84.91,6.45620063]
[1773243854138,10.586,85.003,84.935,14.77273645]
[1773243854537,6.45620063,85.02,84.938,10.594]
[1773243854739,10.584,85.014,84.939,14.77273645]
[1773243855340,10.584,85.014,84.946,14.77304257]
[1773243855540,6.45620063,85.04,84.946,14.77304257]
[1773243855541,10.583,85.029,84.946,14.77304257]
[1773243855839,10.583,85.029,84.948,14.78621626]
[1773243856035,6.45620063,85.06,84.962,14.78621626]
[1773243856233,6.45620063,85.06,84.963,14.8]
[1773243856437,6.45620063,85.06,84.964,14.78621626]
[1773243856634,10.581,85.042,84.973,14.78621626]
[1773243856832,6.45620063,85.06,84.973,14.78621626]
[1773243858347,10.582,85.032,84.973,14.78621626]
[1773243859644,10.584,85.018,84.957,14.78417295]
[1773243860948,10.583,85.028,84.959,14.768499]
[1773243861744,10.584,85.02,84.961,14.768499]
[1773243862444,10.583,85.029,84.964,14.77699249]
[1773243863044,10.581,85.04,84.964,14.77699249]
[1773243863245,6.45620063,85.06,84.964,14.77699249]
[1773243863743,10.582,85.032,84.977,14.74579662]
[1773243866451,10.582,85.032,84.979,10.589]
[1773243866653,10.582,85.032,84.98,14.74633561]
[1773243866947,10.581,85.04,84.98,14.74633561]
[1773243867646,6.45620063,85.06,84.982,14.74652801]
[1773243868242,10.582,85.037,84.984,10.588]
[1773243868448,6.45620063,85.06,84.967,14.74653889]
[1773243868650,21.158,85.058,84.968,10.59]
[1773243868847,21.158,85.058,84.968,25.33672585]
[1773243869253,21.158,85.058,84.969,14.74672585]
[1773243869753,21.158,85.058,84.968,10.59]
[1773243869754,6.45620063,85.06,84.972,14.74660127]
[1773243871454,10.582,85.033,84.98,14.74678318]
[1773243871843,6.45620063,85.06,84.98,14.74678318]
[1773243872348,6.45620063,85.04,84.931,14.74713435]
[1773243873050,21.163,85.039,84.944,14.74731249]
[1773243873249,6.45620063,85.02,84.944,14.74731249]
[1773243874051,6.45620063,85.02,84.911,14.76575161]
[1773243874556,10.589,84.981,84.93,10.595]
[1773243875153,6.45620063,85.02,84.931,14.76596454]
[1773243876059,6.45620063,85.02,84.955,14.7518052]
[1773243876752,10.587,84.994,84.937,14.7518052]
[1773243876954,6.45620063,85.02,84.937,14.7518052]
[1773243877347,6.45620063,85.02,84.946,14.7519844]
[1773243877547,14.8,85.042,84.902,14.7519844]
[1773243877548,6.45620063,85.0,84.902,14.7519844]
[1773243878056,10.59,84.972,84.919,14.76162416]
[1773243878758,10.589,84.98,84.923,14.76162416]
[1773243879252,6.45620063,85.02,84.933,14.76181812]
[1773243879552,6.45990937,85.02,84.933,14.76181812]
[1773243880256,10.587,84.996,84.946,10.593]
[1773243880456,10.587,84.996,84.933,14.76181812]
[1773243881247,10.587,84.996,84.946,14.73847173]
[1773243881453,6.45990937,85.02,84.946,14.73847173]
[1773243882659,10.587,84.991,84.946,14.73847173]
[1773243883255,6.45990937,85.0,84.93,10.595]
[1773243883456,6.45990937,85.0,84.929,14.69830622]
[1773243885465,10.59,84.972,84.929,14.69830622]
[1773243886254,6.45990937,85.0,84.929,14.69830622]
[1773243886451,6.45990937,85.0,84.888,14.8]
[1773243886452,6.45990937,85.0,84.914,14.67106009]
[1773243887459,10.591,84.963,84.914,14.67106009]
[1773243888167,6.45990937,84.98,84.914,14.67106009]
[1773243888955,10.593,84.946,84.914,14.67106009]
[1773243889467,6.45990937,84.98,84.876,14.8]
[1773243889665,6.45990937,84.98,84.877,14.65334999]
[1773243890368,10.592,84.951,84.902,14.66024208]
[1773243891163,10.591,84.958,84.902,14.66024208]
[1773243891365,6.45990937,84.98,84.902,14.66024208]
[1773243892364,10.59,84.966,84.918,14.66317291]
[1773243894472,21.175,84.993,84.918,14.66317291]
[1773243894770,6.45990937,84.98,84.884,14.66858299]
[1773243895174,6.45990937,84.98,84.883,14.8]
[1773243895175,10.594,84.939,84.898,14.66858821]
[1773243895375,21.178,84.978,84.898,14.66858821]
[1773243895869,21.179,84.974,84.898,14.66858821]
[1773243896070,6.45990937,84.96,84.898,14.66858821]
[1773243896267,6.45990937,84.98,84.898,14.66858821]
[1773243896465,10.593,84.949,84.901,14.66976244]
[1773243897070,10.593,84.949,84.904,10.598]
[1773243897267,10.593,84.949,84.901,14.66976244]
[1773243897778,10.593,84.942,84.901,14.66976244]
[1773243897978,21.178,84.979,84.901,14.66976244]
[1773243898375,6.45990937,84.98,84.901,14.66976244]
[1773243899377,10.591,84.959,84.91,14.77077803]
[1773243899578,6.45990937,84.98,84.91,14.77077803]
[1773243899781,14.8,84.979,84.91,14.77077803]
[1773243899980,10.593,84.943,84.889,14.79291104]
[1773243900279,14.8,84.979,84.889,14.79291104]
[1773243900581,14.8,84.979,84.86,6.45990937]
[1773243900582,10.592,84.95,84.898,14.79291104]
[1773243900775,14.8,84.979,84.898,14.79291104]
[1773243901082,2.0486616,84.995,84.861,14.79309771]
[1773243901083,6.45990937,84.96,84.861,14.79309771]
[1773243901378,6.45990937,84.94,84.861,14.79309771]
[1773243901579,10.597,84.913,84.861,14.79309771]
[1773243901782,10.597,84.913,84.86,10.604]
[1773243901783,6.45990937,84.94,84.823,14.84085249]
[1773243901982,35.988,84.939,84.823,14.84085249]
[1773243902374,6.45990937,84.94,84.852,14.84085249]
[1773243902578,14.8,84.95,84.852,14.84085249]
[1773243903085,21.186,84.949,84.861,14.84110324]
[1773243903778,21.186,84.949,84.864,14.85376681]
[1773243903981,21.186,84.949,84.821,2.04999514]
[1773243903982,6.45990937,84.92,84.849,14.85376681]
[1773243904183,14.8,84.919,84.849,14.85376681]
[1773243904780,6.45990937,84.92,84.849,14.85376681]
[1773243905175,10.6,84.892,84.849,14.85376681]
[1773243905482,6.45990937,84.92,84.849,14.85376681]
[1773243905682,6.45990937,84.92,84.812,14.85402923]
[1773243905876,10.601,84.881,84.825,14.86852999]
[1773243906286,6.45990937,84.9,84.825,14.86852999]
[1773243907284,21.19,84.932,84.825,14.86852999]
[1773243907285,6.45990937,84.92,84.825,14.86852999]
[1773243907879,6.45990937,84.92,84.841,15.02920936]
[1773243908390,14.8,84.934,84.841,15.02920936]
[1773243908581,14.8,84.934,84.802,14.8]
[1773243908582,14.8,84.934,84.864,15.02920936]
[1773243908778,6.45990937,84.94,84.864,15.02920936]
[1773243909182,6.45990937,84.94,84.84,6.45990937]
[1773243909183,6.45990937,84.96,84.89,15.02968997]
[1773243909383,14.8,84.974,84.89,15.02968997]
[1773243909689,14.8,84.974,84.855,14.8]
[1773243909690,10.59,84.966,84.91,15.02968997]
[1773243909882,14.8,84.974,84.91,15.02968997]
[1773243910083,14.8,84.974,84.91,9.14968997]
[1773243910287,14.8,84.974,84.88,6.45990937]
[1773243910288,10.59,84.972,84.912,10.597]
[1773243910486,10.59,84.972,84.88,6.45990937]
[1773243910686,10.589,84.981,84.9,6.45990937]
[1773243911091,6.45990937,85.0,84.9,6.45990937]
[1773243911381,6.45990937,85.0,84.924,10.596]
[1773243911579,6.45990937,85.0,84.9,6.45990937]
[1773243912186,10.587,84.993,84.934,12.13753831]
[1773243912384,6.45990937,85.0,84.888,14.8]
[1773243912584,14.8,85.003,84.852,21.21]
[1773243912585,6.45990937,84.98,84.889,12.13753831]
[1773243912790,6.45990937,84.96,84.889,12.13753831]
[1773243912986,6.45990937,84.96,84.892,12.13819679]
[1773243913896,6.45990937,84.96,84.86,6.45990937]
[1773243913897,6.45990937,84.96,84.894,12.02740423]
[1773243914192,14.8,84.969,84.894,12.02740423]
[1773243914593,14.8,84.976,84.894,12.02740423]
[1773243915392,10.592,84.951,84.894,12.02740423]
[1773243915982,14.8,84.976,84.903,10.598]
[1773243916184,14.8,84.976,84.894,12.02740423]
[1773243916693,14.8,84.976,84.902,12.02540807]
[1773243917390,6.45990937,84.96,84.886,12.02586175]
[1773243918488,10.597,84.912,84.857,12.03020285]
[1773243919091,14.8,84.932,84.866,10.603]
[1773243919092,10.596,84.921,84.866,10.603]
[1773243919289,14.8,84.932,84.857,12.03020285]
[1773243920393,10.597,84.912,84.857,22.63420285]
[1773243920594,10.597,84.912,84.858,11.996826]
[1773243921189,14.8,84.932,84.863,11.99720977]
[1773243921190,10.596,84.92,84.863,11.99720977]
[1773243921695,14.8,84.932,84.863,11.99720977]
[1773243921889,6.45990937,84.92,84.863,11.99720977]
[1773243922487,10.597,84.91,84.863,11.99720977]
[1773243922686,14.8,84.932,84.863,11.99720977]
[1773243923087,6.45990937,84.96,84.872,12.01440064]
[1773243923689,10.594,84.936,84.883,10.601]
[1773243923889,6.45990937,84.96,84.884,12.00191582]
[1773243924501,10.595,84.931,84.884,12.00191582]
[1773243924699,6.45990937,84.96,84.884,12.00191582]
[1773243924888,10.594,84.941,84.884,12.00191582]
[1773243925093,6.45990937,84.96,84.884,12.00191582]
[1773243925489,10.594,84.934,84.884,12.00191582]
[1773243926194,10.596,84.925,84.884,12.00191582]
[1773243926392,6.45990937,84.96,84.884,12.00191582]
[1773243926594,6.45990937,84.94,84.821,12.01780922]
[1773243926793,6.45990937,84.94,84.82,6.45990937]
[1773243926794,10.597,84.911,84.863,12.01780922]
[1773243927192,21.25990937,84.94,84.863,12.01780922]
[1773243929198,10.598,84.904,84.863,12.01780922]
[1773243930398,6.45990937,84.94,84.863,12.01780922]
[1773243930598,14.8,84.939,84.863,12.01780922]
[1773243930802,6.45990937,84.94,84.863,12.01780922]
[1773243931001,6.45990937,84.96,84.863,12.01780922]
[1773243931399,10.595,84.93,84.882,12.01283535]
[1773243932501,14.8,84.963,84.841,12.02065978]
[1773243932502,6.45990937,84.94,84.841,12.02065978]
[1773243933100,10.598,84.908,84.86,12.02101507]
[1773243933605,10.597,84.915,84.868,12.02101507]
[1773243934706,6.45990937,84.92,84.849,12.01656845]
[1773243935406,10.6,84.89,84.849,12.01656845]
[1773243936208,10.599,84.898,84.851,11.97990699]
[1773243937502,10.599,84.898,84.856,11.98019642]
[1773243938004,10.6,84.891,84.856,11.98019642]
[1773243938203,21.194,84.916,84.807,11.99530146]
[1773243938404,6.45990937,84.9,84.807,11.99530146]
[1773243938706,6.45990937,84.9,84.823,11.99530146]
[1773243939106,10.603,84.864,84.823,11.99530146]
[1773243939409,6.45990937,84.88,84.808,10.61]
[1773243939604,6.45990937,84.88,84.809,11.99560476]
[1773243939904,6.45990937,84.88,84.81,11.99560476]
[1773243940809,6.45990937,84.88,84.785,14.8]
[1773243940810,10.603,84.865,84.816,11.99667853]
[1773243941010,6.45990937,84.88,84.816,11.99667853]
[1773243941400,6.45990937,84.9,84.829,11.99667853]
[1773243941605,6.47740027,84.9,84.829,11.99667853]
[1773243942106,13.97684759,84.962,84.78,21.228]
[1773243942107,6.47740027,84.94,84.846,11.98667983]
[1773243942703,10.596,84.92,84.876,10.602]
[1773243942900,6.47740027,84.94,84.877,11.98695293]
[1773243943808,10.596,84.921,84.877,11.98695293]
[1773243944708,6.47740027,84.94,84.88,11.94856233]
[1773243944709,10.595,84.93,84.88,11.94856233]
[1773243945608,6.47740027,84.94,84.88,11.94856233]
[1773243945609,10.596,84.921,84.88,11.94856233]
[1773243945911,14.8,84.952,84.88,11.94856233]
[1773243946110,14.8,84.952,84.882,11.92693306]
[1773243947213,10.594,84.938,84.884,11.92713365]
[1773243947510,6.47740027,84.98,84.884,11.92713365]
[1773243947711,14.8,84.979,84.884,11.92713365]
[1773243948510,2.04857718,84.995,84.907,11.93958043]
[1773243948714,14.8,84.984,84.907,11.93958043]
[1773243949413,6.47740027,85.01,84.927,11.93978799]
[1773243949616,305.89656562,84.998,84.927,11.93978799]
[1773243950112,10.588,84.985,84.933,11.90712428]
[1773243950312,291.09656562,84.998,84.933,11.90712428]
[1773243951406,10.587,84.997,84.933,11.90712428]
[1773243952009,291.09656562,84.998,84.944,11.96274823]
[1773243952513,10.589,84.979,84.944,11.96274823]
[1773243952815,14.8,84.997,84.944,11.96274823]
[1773243953116,14.8,84.997,84.901,11.96296379]
[1773243953616,10.589,84.979,84.928,11.96296379]
[1773243954710,14.8,84.997,84.9,6.47740027]
[1773243954711,10.587,84.99,84.932,11.94053289]
[1773243956517,10.587,84.99,84.933,10.594]
[1773243956816,10.587,84.99,84.934,11.94259041]
[1773243958518,14.8,84.997,84.934,11.94259041]
[1773243959317,10.588,84.982,84.934,11.94259041]
[1773243960518,10.587,84.991,84.934,11.94259041]
[1773243960715,291.09656562,84.998,84.934,11.94259041]
[1773243961114,10.587,84.997,84.953,12.006664]
[1773243961418,291.09656562,84.998,84.953,12.006664]
[1773243961619,6.47740027,84.99,84.901,12.006664]
[1773243961920,6.47740027,84.99,84.927,12.01203647]
[1773243962916,291.09656562,84.998,84.927,12.01203647]
[1773243963112,10.589,84.981,84.937,10.594]
[1773243963321,14.8,84.997,84.937,12.01226767]
[1773243964418,10.588,84.982,84.939,12.00791282]
[1773243964617,14.8,84.997,84.939,12.00791282]
[1773243964819,6.47740027,84.99,84.901,12.00791282]
[1773243965017,6.47740027,84.99,84.88,6.47740027]
[1773243965018,6.47740027,84.99,84.913,12.00813547]
[1773243965315,14.8,84.989,84.913,12.00813547]
[1773243965521,10.589,84.98,84.931,12.00813547]
[1773243965712,291.09656562,84.998,84.931,12.00813547]
[1773243965919,14.8,84.994,84.931,12.00813547]
[1773243966320,14.8,84.994,84.9,6.47740027]
[1773243966321,10.588,84.988,84.94,12.01342686]
[1773243966722,14.8,84.994,84.949,12.01342686]
[1773243966919,291.09656562,84.998,84.949,12.01342686]
[1773243967518,291.09656562,84.998,84.904,35.997]
[1773243967519,291.09656562,84.998,84.905,12.01364777]
[1773243967914,10.59,84.971,84.925,12.03295038]
[1773243968115,291.09656562,84.998,84.925,12.03295038]
[1773243968419,10.584,85.019,84.973,10.589]
[1773243968619,14.8,85.022,84.969,12.03295038]
[1773243969122,6.47740027,85.05,84.972,12.03317893]
[1773243969419,14.8,85.049,84.972,12.03317893]
[1773243969616,10.583,85.026,84.973,12.03317893]
[1773243969823,14.8,85.049,84.973,12.03317893]
[1773243970022,6.47740027,85.03,84.973,12.03317893]
[1773243970421,6.47740027,85.03,84.918,21.193]
[1773243970422,6.47740027,85.03,84.941,12.07368517]
[1773243971420,6.47740027,85.01,84.947,12.07393982]
[1773243971619,21.27740027,85.01,84.947,12.07393982]
[1773243972219,10.588,84.989,84.947,12.07393982]
[1773243972625,10.589,84.977,84.947,12.07393982]
[1773243972817,21.27740027,85.01,84.947,12.07393982]
[1773243973019,164.556,85.065,84.962,12.07059328]
[1773243973020,10.586,85.002,84.962,12.07059328]
[1773243974521,14.8,85.028,84.962,12.07059328]
[1773243975128,10.586,85.003,84.962,12.07059328]
[1773243975523,14.8,85.026,84.962,12.07059328]
[1773243975726,289.62052999,85.053,84.937,21.188]
[1773243975727,10.582,85.031,84.986,12.02334546]
[1773243976121,6.47740027,85.05,84.986,12.02334546]
[1773243976427,10.582,85.031,84.986,12.02334546]
[1773243976626,6.47740027,85.05,84.986,12.02334546]
[1773243976925,6.47740027,85.05,84.95,6.47740027]
[1773243976926,10.582,85.031,84.988,12.03256779]
[1773243977327,6.47740027,85.03,84.96,12.03256779]
[1773243977829,2.04742013,85.045,84.96,12.03256779]
[1773243978030,2.04742013,85.045,84.943,14.8]
[1773243978031,10.583,85.025,84.983,12.01973595]
[1773243978420,14.8,85.042,84.987,12.01973595]
[1773243978421,10.582,85.033,84.987,12.01973595]
[1773243978826,14.8,85.042,84.987,12.01973595]
[1773243979931,10.582,85.033,84.99,12.00086046]
[1773243980828,10.582,85.033,84.939,35.24]
[1773243980829,6.47740027,85.03,84.974,12.00086046]
[1773243981729,6.47740027,85.03,84.931,12.00103702]
[1773243981928,14.8,85.029,84.931,12.00103702]
[1773243982126,6.47740027,85.03,84.933,12.00043221]
[1773243982325,6.47740027,85.03,84.973,12.00043221]
[1773243983226,6.47740027,85.05,84.976,12.00060391]
[1773243984338,304.42052999,85.053,85.001,12.04249749]
[1773243984738,289.62052999,85.053,85.001,12.04249749]
[1773243985037,10.581,85.041,85.001,12.04249749]
[1773243986631,10.582,85.03,85.001,12.04249749]
[1773243986832,289.62052999,85.053,85.001,12.04249749]
[1773243987037,10.579,85.058,85.017,12.05978853]
[1773243989234,10.578,85.067,85.023,12.06724366]
[1773243989636,10.577,85.075,85.033,12.06724366]
[1773243990139,10.578,85.069,85.033,12.06724366]
[1773243990540,14.8,85.09,85.033,12.06724366]
[1773243990735,10.577,85.078,85.033,12.06724366]
[1773243991133,14.8,85.09,85.033,12.06724366]
[1773243991939,10.577,85.073,85.033,12.06724366]
[1773243992636,10.576,85.082,85.033,12.06724366]
[1773243993344,10.576,85.082,85.037,12.11965724]
[1773243993545,6.47740027,85.1,84.998,12.11965724]
[1773243994047,6.47740027,85.1,85.017,12.13139015]
[1773243994349,6.47740027,85.08,85.017,12.13139015]
[1773243994543,10.578,85.066,85.026,12.13139015]
[1773243994945,6.47740027,85.08,85.026,12.13139015]
[1773243995143,6.47740027,85.08,85.012,12.13160715]
[1773243995642,6.47740027,85.06,84.973,12.13160715]
[1773243996438,10.581,85.041,84.996,12.13127992]
[1773243996848,6.47740027,85.06,84.973,12.13149454]
[1773243997044,10.583,85.022,84.973,12.13149454]
[1773243997448,21.27740027,85.06,84.973,12.13149454]
[1773243997748,10.582,85.03,84.982,12.13149454]
[1773243998444,6.47740027,85.04,84.949,12.1556615]
[1773243998651,6.47740027,85.02,84.949,12.1556615]
[1773243999153,10.586,84.999,84.949,12.1556615]
[1773243999450,6.47740027,85.02,84.949,12.1556615]
[1773244000147,10.586,84.999,84.949,12.1556615]
[1773244000341,6.47740027,85.02,84.949,12.1556615]
[1773244000546,10.586,85.003,84.949,12.1556615]
[1773244000751,6.47740027,85.02,84.949,12.1556615]
[1773244000941,6.47740027,85.02,84.911,12.1450921]
[1773244001750,10.588,84.983,84.928,12.1450921]
[1773244002044,6.47740027,85.02,84.928,12.1450921]
[1773244002449,6.47740027,85.0,84.934,12.15536378]
[1773244002950,10.589,84.981,84.934,12.15536378]
[1773244003341,6.47740027,85.0,84.934,12.15536378]
[1773244003546,6.46033579,85.01,84.934,12.15536378]
[1773244004453,10.587,84.991,84.937,12.15639163]
[1773244005048,6.46033579,84.99,84.937,12.15639163]
[1773244005449,6.46033579,85.01,84.937,12.15639163]
[1773244006351,6.46033579,85.01,84.939,12.15859304]
[1773244006549,6.46033579,85.03,84.939,12.15859304]
[1773244007448,6.46033579,85.05,84.972,12.15879196]
[1773244007648,21.155,85.074,84.972,12.15879196]
[1773244007649,6.46033579,85.06,84.972,12.15879196]
[1773244008254,6.46033579,85.06,84.946,14.8]
[1773244008255,6.46033579,85.06,84.982,12.23289898]
[1773244009148,14.8,85.079,85.0,12.23312635]
[1773244009353,6.46033579,85.08,85.0,12.23312635]
[1773244009553,21.05810581,85.141,85.0,12.23312635]
[1773244009554,14.8,85.095,85.0,12.23312635]
[1773244009857,14.8,85.095,84.98,6.46033579]
[1773244009858,10.577,85.072,85.016,12.22898598]
[1773244010246,14.8,85.095,85.02,12.22898598]
[1773244010247,10.576,85.082,85.02,12.22898598]
[1773244010449,6.46033579,85.1,85.02,12.22898598]
[1773244010754,21.05810581,85.173,85.02,12.22898598]
[1773244010755,6.46033579,85.12,85.02,12.22898598]
[1773244010954,6.46033579,85.1,85.037,12.22919863]
[1773244011149,6.46033579,85.1,85.0,12.22919863]
[1773244012252,10.578,85.065,85.015,11.97505336]
[1773244012852,10.577,85.075,85.018,11.97505336]
[1773244013049,6.46033579,85.1,85.018,11.97505336]
[1773244013351,6.46033579,85.08,85.018,11.97505336]
[1773244014758,10.579,85.062,85.018,11.97505336]
[1773244015053,6.46033579,85.08,85.018,11.97505336]
[1773244016459,10.579,85.062,85.018,11.97505336]
[1773244016655,6.46033579,85.08,85.018,11.97505336]
[1773244017557,10.579,85.054,85.018,11.97505336]
[1773244018157,10.578,85.063,85.018,11.97505336]
[1773244018357,2.04610799,85.105,85.018,11.97505336]
[1773244018358,6.46033579,85.1,85.018,11.97505336]
[1773244019458,10.577,85.071,85.021,11.84282918]
[1773244021764,6.46033579,85.08,84.991,11.76441321]
[1773244021960,6.46033579,85.06,84.991,11.76441321]
[1773244022162,10.583,85.03,84.991,11.76441321]
[1773244022362,6.46033579,85.04,84.951,11.74845238]
[1773244023364,6.46033579,85.04,84.962,11.74846098]
[1773244023759,10.586,85.003,84.962,11.74846098]
[1773244024664,6.46033579,85.04,84.962,11.74846098]
[1773244025665,10.585,85.011,84.967,11.7368664]
[1773244026554,6.46033579,85.04,84.967,11.7368664]
[1773244026966,10.585,85.012,84.967,11.7368664]
[1773244027165,6.46033579,85.04,84.967,11.7368664]
[1773244027664,10.586,85.003,84.967,11.7368664]
[1773244027864,10.586,85.003,84.906,21.196]
[1773244027865,21.163,85.038,84.907,11.73292688]
[1773244028169,6.46033579,85.0,84.907,11.73292688]
[1773244028355,6.46033579,85.0,84.914,11.73292688]
[1773244029162,6.46033579,85.0,84.927,11.7329295]
[1773244029760,10.589,84.976,84.927,11.7329295]
[1773244029966,6.46033579,85.0,84.927,11.7329295]
[1773244031271,6.46033579,85.0,84.928,11.73732966]
[1773244032863,17.00016034,85.05,84.928,11.73732966]
[1773244032864,6.46033579,85.02,84.928,11.73732966]
[1773244034262,6.46033579,85.02,84.929,11.69289129]
[1773244034468,10.585,85.008,84.949,11.69289129]
[1773244034669,6.46033579,85.04,84.949,11.69289129]
[1773244034869,6.46033579,85.06,84.951,11.69288092]
[1773244035258,6.46033579,85.06,84.979,11.69288092]
[1773244035668,10.579,85.06,84.998,11.69288092]
[1773244036063,6.46033579,85.08,84.998,11.69288092]
[1773244036669,6.46033579,85.08,85.011,11.72384218]
[1773244037265,10.578,85.064,85.012,10.585]
[1773244037464,10.578,85.064,85.013,11.72384174]
[1773244037663,6.46033579,85.08,85.013,11.72384174]
[1773244037859,10.578,85.064,85.013,11.72384174]
[1773244038069,6.46033579,85.1,85.013,11.72384174]
[1773244038369,10.578,85.066,85.016,11.73050418]
[1773244038763,6.46033579,85.1,85.016,11.73050418]
[1773244039367,10.578,85.067,85.017,11.73050577]
[1773244040364,14.8,85.104,85.017,11.73050577]
[1773244040365,6.46033579,85.08,85.017,11.73050577]
[1773244040567,6.46033579,85.08,84.974,11.71550635]
[1773244040958,10.579,85.054,84.997,11.71550336]
[1773244041160,6.46033579,85.08,84.997,11.71550336]
[1773244042570,6.46033579,85.08,85.008,11.65214368]
[1773244043762,6.46033579,85.08,84.921,29.03133168]
[1773244043763,6.46033579,85.06,84.991,11.65212145]
[1773244043963,6.46033579,85.06,84.951,11.64394703]
[1773244045265,6.46033579,85.06,84.95,6.46033579]
[1773244045266,6.46033579,85.06,84.981,11.64392341]
[1773244046267,10.581,85.041,84.985,11.6477032]
[1773244046668,6.46033579,85.06,84.987,10.588]
[1773244046669,10.581,85.042,84.987,10.588]
[1773244046872,10.581,85.042,84.988,11.6477032]
[1773244047475,6.46033579,85.06,84.988,11.6477032]
[1773244047476,10.58,85.051,84.988,11.6477032]
[1773244047675,6.46033579,85.06,84.988,11.6477032]
[1773244047873,10.582,85.03,84.988,11.6477032]
[1773244048181,6.46033579,85.04,84.967,11.64553824]
[1773244048378,10.586,85.002,84.967,11.64553824]
[1773244048580,6.46033579,85.04,84.923,11.64553824]
[1773244048977,10.586,85.003,84.952,22.23751583]
[1773244049183,6.46033579,85.02,84.952,11.64551583]
[1773244049881,10.588,84.988,84.952,11.64551583]
[1773244050281,6.46033579,85.0,84.952,11.64551583]
[1773244050473,6.46033579,85.02,84.952,11.64551583]
[1773244051377,6.46033579,85.02,84.92,6.46033579]
[1773244051378,10.584,85.017,84.962,11.6647598]
[1773244051880,10.583,85.027,84.978,10.589]
[1773244052188,283.42787177,85.059,84.979,11.66629987]
[1773244052483,6.46033579,85.04,84.979,11.66629987]
[1773244052686,283.42787177,85.059,84.979,11.66629987]
[1773244053979,10.582,85.035,84.979,11.66629987]
[1773244054578,283.42787177,85.059,84.99,11.74505221]
[1773244055288,283.42787177,85.059,85.002,11.74505735]
[1773244055489,6.46033579,85.08,85.002,11.74505735]
[1773244056687,6.46033579,85.08,85.01,10.585]
[1773244056688,10.579,85.057,85.01,10.585]
[1773244057385,10.579,85.057,85.002,11.74505735]
[1773244057386,10.579,85.057,85.003,11.76197748]
[1773244057589,10.58,85.05,85.003,11.76197748]
[1773244058090,10.58,85.05,85.007,11.77626968]
[1773244058487,6.46033579,85.08,85.007,11.77626968]
[1773244059186,6.46033579,85.08,84.989,11.7762823]
[1773244059389,6.46033579,85.06,84.989,11.7762823]
[1773244059789,10.582,85.033,84.989,11.7762823]
[1773244060196,6.46033579,85.06,84.989,11.7762823]
[1773244060793,10.582,85.033,84.989,11.7762823]
[1773244061686,10.583,85.027,84.989,11.7762823]
[1773244061883,6.46033579,85.06,84.972,11.77962833]
[1773244062090,14.8,85.063,84.972,11.77962833]
[1773244062091,6.46033579,85.04,84.972,11.77962833]
[1773244062592,10.584,85.02,84.972,11.77962833]
[1773244062789,6.46033579,85.04,84.972,11.77962833]
[1773244062984,6.46033579,85.04,84.963,10.591]
[1773244062985,6.46033579,85.02,84.953,11.7796413]
[1773244063186,6.46033579,85.0,84.921,11.7796413]